fUST/lending_fUST_20240630
["ID","MTS","AMOUNT","RATE_DAILY","PERIOD"]
[330725885,1719739360822,273.37336231,9.9e-05,2]
[330725886,1719739368875,273.37336231,9.9e-05,2]
[330725887,1719739377024,273.37336231,9.9e-05,2]
[330725888,1719739384976,273.37336231,9.9e-05,2]
[330725889,1719739393598,273.37336231,9.9e-05,2]
[330725890,1719739401614,273.37336231,9.9e-05,2]
[330725891,1719739409773,273.37336231,9.9e-05,2]
[330725892,1719739417587,273.37336231,9.9e-05,2]
[330725893,1719739426937,273.37336231,9.9e-05,2]
[330725894,1719739435436,273.37336231,9.9e-05,2]
[330725896,1719739443868,273.37336231,9.9e-05,2]
[330725897,1719739451740,273.37336231,9.9e-05,2]
[330725898,1719739460272,273.37336231,9.9e-05,2]
[330725899,1719739467771,273.37336231,9.9e-05,2]
[330725900,1719739476617,273.37336231,9.9e-05,2]
[330725901,1719739484669,273.37336231,9.9e-05,2]
[330725902,1719739492855,273.37336231,9.9e-05,2]
[330725903,1719739500811,273.37336231,9.9e-05,2]
[330725904,1719739510721,273.37336231,9.9e-05,2]
[330725905,1719739518730,273.37336231,9.9e-05,2]
[330725906,1719739527569,273.37336231,9.9e-05,2]
[330725907,1719739536147,273.37336231,9.9e-05,2]
[330725908,1719739544275,273.37336231,9.9e-05,2]
[330725909,1719739552446,273.37336231,9.9e-05,2]
[330725910,1719739560548,273.37336231,9.9e-05,2]
[330725911,1719739568507,273.37336231,9.9e-05,2]
[330725912,1719739576667,273.37336231,9.9e-05,2]
[330725913,1719739585212,273.37336231,9.9e-05,2]
[330725914,1719739593940,273.37336231,9.9e-05,2]
[330725966,1719739831884,-190.78309208,0.00015336,2]
[330725968,1719739831894,-499.99999999,0.000155,2]
[330725970,1719739831904,-586.79423489,0.00015524,2]
[330725972,1719739831913,-75.12474741,0.00015524,2]
[330725974,1719739831925,-1600.31656669,0.00015524,2]
[330725976,1719739831937,-636.53625817,0.00015524,2]
[330725979,1719739831948,-4776.5560491,0.00015524,2]
[330725981,1719739831958,-1634.22761319,0.00015525,2]
[330725983,1719739831970,-635.79487883,0.00015525,2]
[330726494,1719739837864,-1918.28939747,0.00015525,2]
[330726739,1719739840416,-1674.79371648,0.00015525,2]
[330727103,1719739844012,-982.83120587,0.00015525,2]
[330729555,1719740243483,362.20378,0.000145,2]
[330729560,1719740537137,4708.48546044,0.00014999,2]
[330729561,1719740553095,4708.48546044,0.00014999,2]
[330729562,1719740660795,2393.21381359,0.000249,120]
[330729563,1719740731086,4708.48546044,0.00014999,2]
[330729578,1719740908088,886.09170611,0.00014999,2]
[330730071,1719741038315,-2077.00191793,0.00015163,2]
[330730195,1719741043666,-3079.95,0.00015163,2]
[330731178,1719741170981,797.52124102,0.00015,2]
[330731179,1719741199362,613.80017943,0.00015,2]
[330731193,1719741488095,181.10189,0.00014434,2]
[330731195,1719741760293,5286.34479944,0.00014894,2]
[330731197,1719741816383,150.0,0.00014986,2]
[330731200,1719741924136,250.0,0.00014374,2]
[330731202,1719742029517,181.1018917,0.00014389,2]
[330731207,1719742204328,6997.38575253,0.00014998,2]
[330731238,1719742232301,-300.0,0.00015373,2]
[330731239,1719742232311,-252.72494088,0.00015398,2]
[330731241,1719742232323,-534.17934291,0.00015398,2]
[330731243,1719742232332,-27.28362513,0.00015398,2]
[330731288,1719742238418,-2035.52337484,0.00015398,2]
[330731307,1719742238582,-18509.54198318,0.00015398,2]
[330731310,1719742238592,-13615.48732132,0.00015398,2]
[330731312,1719742238603,-728.15059198,0.00015408,2]
[330731314,1719742238613,-6308.94,0.00015423,2]
[330731316,1719742238623,-500.0,0.00015423,2]
[330731318,1719742238633,-1734.8,0.00015423,2]
[330731320,1719742238643,-4613.01,0.00015423,2]
[330731322,1719742238653,-500.0,0.00015423,2]
[330731324,1719742238663,-727.0,0.00015423,2]
[330731326,1719742238673,-500.0,0.00015424,2]
[330731328,1719742238682,-38503.59,0.00015424,2]
[330731330,1719742238692,-4583.62,0.00015424,2]
[330731332,1719742238701,-1728.21,0.00015424,2]
[330731334,1719742238711,-3613.88,0.00015424,2]
[330731336,1719742238720,-500.0,0.00015424,2]
[330731338,1719742238731,-500.0,0.00015424,2]
[330731340,1719742238740,-500.0,0.00015424,2]
[330731341,1719742238749,-1580.38,0.00015424,2]
[330731342,1719742238759,-651.9,0.00015424,2]
[330731343,1719742238768,-5783.45,0.00015424,2]
[330731344,1719742238778,-8627.02,0.00015424,2]
[330731346,1719742238788,-4424.6,0.00015424,2]
[330731348,1719742238798,-853.75,0.00015424,2]
[330731350,1719742238808,-779.47,0.00015424,2]
[330731352,1719742238817,-3349.38,0.00015424,2]
[330731354,1719742238827,-500.0,0.00015425,2]
[330731356,1719742238836,-736.09,0.00015425,2]
[330731358,1719742238846,-500.0,0.00015425,2]
[330731360,1719742238855,-200.77325294,0.00015425,2]
[330731362,1719742238864,-500.0,0.00015425,2]
[330731364,1719742238873,-500.0,0.00015425,2]
[330731366,1719742238883,-503.25470798,0.00015425,2]
[330731368,1719742238892,-500.0,0.00015425,2]
[330731370,1719742238901,-501.20225164,0.00015425,2]
[330731372,1719742238911,-698.32,0.00015425,2]
[330731374,1719742238920,-500.0,0.00015425,2]
[330731376,1719742238930,-502.68202853,0.00015425,2]
[330731378,1719742238939,-500.0,0.00015425,2]
[330731380,1719742238949,-500.0,0.00015425,2]
[330731382,1719742238958,-500.0,0.00015425,2]
[330731384,1719742238968,-490.34845535,0.00015425,2]
[330731386,1719742238977,-1272.77,0.00015425,2]
[330731388,1719742238987,-500.0,0.00015425,2]
[330731390,1719742238997,-500.0,0.00015425,2]
[330731393,1719742239009,-500.0,0.00015425,2]
[330731395,1719742239019,-500.0,0.00015425,2]
[330731397,1719742239029,-642.72365021,0.00015425,2]
[330731399,1719742239039,-500.0,0.00015425,2]
[330731401,1719742239049,-500.0,0.00015425,2]
[330731403,1719742239059,-500.0,0.00015425,2]
[330731405,1719742239069,-500.0,0.00015425,2]
[330731407,1719742239079,-526.18308385,0.00015425,2]
[330731409,1719742239089,-550.43610066,0.00015425,2]
[330731411,1719742239099,-500.0,0.00015425,2]
[330731413,1719742239111,-11093.41,0.00015425,2]
[330731415,1719742239121,-500.0,0.00015425,2]
[330731417,1719742239131,-594.27,0.00015425,2]
[330731419,1719742239140,-500.0,0.00015425,2]
[330731421,1719742239151,-500.0,0.00015425,2]
[330731423,1719742239160,-151.0,0.00015425,2]
[330731425,1719742239171,-994.09,0.00015425,2]
[330731427,1719742239181,-151.0,0.00015425,2]
[330731429,1719742239191,-1308.76,0.00015425,2]
[330731431,1719742239202,-500.0,0.00015425,2]
[330731433,1719742239212,-573.467056,0.00015425,2]
[330731435,1719742239221,-573.467056,0.00015425,2]
[330731437,1719742239232,-854.57,0.00015425,2]
[330731439,1719742239242,-500.0,0.00015425,2]
[330731441,1719742239251,-604.95,0.00015425,2]
[330731443,1719742239261,-1816.07,0.00015425,2]
[330731444,1719742239271,-3751.48,0.00015425,2]
[330731447,1719742239285,-508.10731312,0.00015425,2]
[330731449,1719742239296,-711.91,0.00015425,2]
[330731450,1719742239305,-497.24081601,0.00015425,2]
[330731453,1719742239317,-250.2275,0.00015425,2]
[330731454,1719742239327,-250.2275,0.00015425,2]
[330731456,1719742239337,-509.45315943,0.00015425,2]
[330731459,1719742239347,-250.2275,0.00015425,2]
[330731461,1719742239361,-250.2275,0.00015425,2]
[330731463,1719742239371,-17571.39,0.00015425,2]
[330731464,1719742239381,-250.2275,0.00015425,2]
[330731467,1719742239392,-250.2275,0.00015425,2]
[330731468,1719742239401,-1071.78,0.00015425,2]
[330731470,1719742239411,-500.0,0.00015425,2]
[330731472,1719742239420,-754.12,0.00015425,2]
[330731474,1719742239430,-508.18186603,0.00015425,2]
[330731476,1719742239440,-5838.81,0.00015425,2]
[330731478,1719742239449,-614.86170782,0.00015425,2]
[330731480,1719742239460,-504.34795031,0.00015425,2]
[330731482,1719742239471,-500.0,0.00015425,2]
[330731484,1719742239481,-651.93,0.00015425,2]
[330731486,1719742239491,-505.69048026,0.00015425,2]
[330731488,1719742239500,-207.241833,0.00015425,2]
[330731490,1719742239510,-150.0,0.00015437,2]
[330731492,1719742239520,-164.1553246,0.0001547,2]
[330731494,1719742239530,-3463.27715354,0.00015484,2]
[330731496,1719742239542,-135535.98127209,0.00015496,2]
[330731499,1719742239552,-500.0,0.00015496,2]
[330731501,1719742239563,-500.0,0.00015496,2]
[330731503,1719742239573,-500.0,0.00015496,2]
[330731504,1719742239583,-580.97,0.00015496,2]
[330731506,1719742239593,-500.0,0.00015496,2]
[330731509,1719742239603,-382.69751023,0.00015496,2]
[330731511,1719742239614,-936.14,0.00015496,2]
[330731512,1719742239623,-500.0,0.00015496,2]
[330731514,1719742239633,-501.70799239,0.00015496,2]
[330731516,1719742239642,-2935.5,0.00015496,2]
[330731518,1719742239652,-883.38,0.00015496,2]
[330731520,1719742239662,-500.0,0.00015496,2]
[330731522,1719742239671,-500.0,0.00015496,2]
[330731524,1719742239681,-500.0,0.00015496,2]
[330731525,1719742239690,-598.26,0.00015496,2]
[330731527,1719742239699,-818.01,0.00015496,2]
[330731528,1719742239709,-500.0,0.00015496,2]
[330731530,1719742239719,-588.07,0.00015496,2]
[330731531,1719742239728,-504.32857135,0.00015496,2]
[330731533,1719742239738,-500.0,0.00015496,2]
[330731535,1719742239747,-502.32933308,0.00015496,2]
[330731536,1719742239761,-500.0,0.00015496,2]
[330731538,1719742239770,-502.75853814,0.00015496,2]
[330731546,1719742239887,-3544.57,0.00015496,2]
[330731548,1719742239897,-500.0,0.00015496,2]
[330731550,1719742239906,-210.84684265,0.00015496,2]
[330731551,1719742239916,-506.19227959,0.00015496,2]
[330731553,1719742239925,-500.0,0.00015496,2]
[330731555,1719742239935,-713.13,0.00015496,2]
[330731556,1719742239944,-513.74471728,0.00015496,2]
[330731558,1719742239954,-501.7334312,0.00015496,2]
[330731560,1719742239963,-1951.48,0.00015496,2]
[330731561,1719742239973,-500.0,0.00015496,2]
[330731563,1719742239984,-500.0,0.00015496,2]
[330731565,1719742239993,-500.0,0.00015496,2]
[330731566,1719742240003,-500.0,0.00015496,2]
[330731568,1719742240013,-645.92,0.00015496,2]
[330731570,1719742240022,-697.61,0.00015496,2]
[330731571,1719742240033,-1404.62,0.00015496,2]
[330731573,1719742240043,-518.6968974,0.00015496,2]
[330731575,1719742240052,-3242.34,0.00015496,2]
[330731577,1719742240062,-500.0,0.00015496,2]
[330731578,1719742240071,-500.0,0.00015496,2]
[330731580,1719742240081,-3921.99,0.00015496,2]
[330731582,1719742240091,-500.0,0.00015496,2]
[330731583,1719742240100,-793.71,0.00015496,2]
[330731585,1719742240109,-501.72680499,0.00015496,2]
[330731586,1719742240119,-501.5096367,0.00015496,2]
[330731588,1719742240128,-660.51,0.00015496,2]
[330731590,1719742240137,-893.13,0.00015496,2]
[330731591,1719742240146,-501.00203503,0.00015496,2]
[330731593,1719742240155,-500.0,0.00015496,2]
[330731595,1719742240165,-13868.28,0.00015496,2]
[330731596,1719742240174,-500.0,0.00015496,2]
[330731598,1719742240184,-500.0,0.00015496,2]
[330731600,1719742240193,-546.67653894,0.00015496,2]
[330731602,1719742240203,-151.0,0.00015496,2]
[330731603,1719742240212,-151.0,0.00015496,2]
[330731605,1719742240221,-500.0,0.00015496,2]
[330731606,1719742240231,-151.0,0.00015496,2]
[330731607,1719742240240,-500.0,0.00015496,2]
[330731608,1719742240249,-151.0,0.00015496,2]
[330731610,1719742240257,-1107.65,0.00015496,2]
[330731612,1719742240266,-500.0,0.00015496,2]
[330731613,1719742240278,-515.09824929,0.00015496,2]
[330731615,1719742240288,-500.0,0.00015496,2]
[330731616,1719742240297,-500.0,0.00015496,2]
[330731618,1719742240306,-500.0,0.00015496,2]
[330731620,1719742240316,-1734.63,0.00015496,2]
[330731621,1719742240325,-573.467056,0.00015496,2]
[330731623,1719742240334,-573.467056,0.00015496,2]
[330731625,1719742240343,-573.467056,0.00015496,2]
[330731626,1719742240353,-573.467056,0.00015496,2]
[330731628,1719742240365,-500.0,0.00015496,2]
[330731630,1719742240375,-1034.21,0.00015496,2]
[330731632,1719742240385,-500.0,0.00015496,2]
[330731633,1719742240394,-500.0,0.00015496,2]
[330731635,1719742240404,-838.23,0.00015496,2]
[330731637,1719742240413,-1288.1,0.00015496,2]
[330731638,1719742240422,-1047.47,0.00015496,2]
[330731640,1719742240431,-2049.93,0.00015496,2]
[330731641,1719742240440,-500.0,0.00015496,2]
[330731643,1719742240450,-500.0,0.00015496,2]
[330731645,1719742240459,-250.2275,0.00015496,2]
[330731647,1719742240468,-250.2275,0.00015496,2]
[330731648,1719742240477,-250.2275,0.00015496,2]
[330731650,1719742240487,-500.0,0.00015496,2]
[330731652,1719742240496,-250.2275,0.00015496,2]
[330731654,1719742240505,-500.0,0.00015496,2]
[330731655,1719742240515,-250.2275,0.00015496,2]
[330731657,1719742240523,-250.2275,0.00015496,2]
[330731659,1719742240532,-250.2275,0.00015496,2]
[330731660,1719742240542,-250.2275,0.00015496,2]
[330731662,1719742240551,-500.0,0.00015496,2]
[330731664,1719742240560,-1318.82,0.00015496,2]
[330731665,1719742240569,-500.0,0.00015496,2]
[330731667,1719742240578,-647.25,0.00015496,2]
[330731669,1719742240587,-1103.87,0.00015496,2]
[330731670,1719742240596,-541.28,0.00015496,2]
[330731672,1719742240605,-500.0,0.00015496,2]
[330731674,1719742240614,-949.62,0.00015496,2]
[330731676,1719742240623,-500.0,0.00015496,2]
[330731677,1719742240633,-500.0,0.00015496,2]
[330731679,1719742240643,-500.0,0.00015496,2]
[330731681,1719742240652,-1993.28,0.00015496,2]
[330731682,1719742240661,-1122.76,0.00015496,2]
[330731684,1719742240670,-500.0,0.00015496,2]
[330731686,1719742240679,-506.29147008,0.00015496,2]
[330731688,1719742240688,-625.34,0.00015496,2]
[330731689,1719742240697,-500.0,0.00015496,2]
[330731691,1719742240706,-11591.3,0.00015496,2]
[330731693,1719742240715,-500.0,0.00015496,2]
[330731694,1719742240725,-151.0,0.00015497,2]
[330731696,1719742240734,-539.08330788,0.00015497,2]
[330731698,1719742240743,-500.0,0.00015497,2]
[330731700,1719742240752,-500.0,0.00015497,2]
[330731701,1719742240761,-500.0,0.00015497,2]
[330731703,1719742240770,-500.0,0.00015497,2]
[330731705,1719742240779,-3583.99,0.00015497,2]
[330731706,1719742240788,-151.0,0.00015497,2]
[330731708,1719742240797,-151.0,0.00015497,2]
[330731710,1719742240806,-151.0,0.00015497,2]
[330731712,1719742240815,-151.0,0.00015497,2]
[330731713,1719742240824,-151.0,0.00015497,2]
[330731715,1719742240834,-151.0,0.00015497,2]
[330731717,1719742240842,-1437.5,0.00015497,2]
[330731719,1719742240851,-982.52,0.00015497,2]
[330731720,1719742240860,-573.467056,0.00015497,2]
[330731722,1719742240869,-573.467056,0.00015497,2]
[330731724,1719742240878,-573.467056,0.00015497,2]
[330731726,1719742240887,-573.467056,0.00015497,2]
[330731727,1719742240896,-573.467056,0.00015497,2]
[330731729,1719742240905,-573.467056,0.00015497,2]
[330731731,1719742240914,-250.2275,0.00015497,2]
[330731733,1719742240923,-250.2275,0.00015497,2]
[330731734,1719742240932,-250.2275,0.00015497,2]
[330731736,1719742240942,-4042.5,0.00015497,2]
[330731738,1719742240951,-4042.5,0.00015497,2]
[330731740,1719742240960,-250.2275,0.00015497,2]
[330731741,1719742240969,-4042.5,0.00015497,2]
[330731743,1719742240979,-250.2275,0.00015497,2]
[330731745,1719742240988,-250.227499,0.00015497,2]
[330731747,1719742240997,-19041.74,0.00015497,2]
[330731748,1719742241006,-754.69,0.00015497,2]
[330731750,1719742241015,-500.0,0.00015498,2]
[330731752,1719742241024,-500.0,0.00015498,2]
[330731754,1719742241033,-550.02769491,0.00015498,2]
[330731755,1719742241042,-1242.47,0.00015498,2]
[330731757,1719742241051,-500.0,0.00015498,2]
[330731758,1719742241061,-503.58440114,0.00015498,2]
[330731760,1719742241071,-2440.34,0.00015498,2]
[330731761,1719742241080,-517.27090328,0.00015498,2]
[330731763,1719742241090,-500.0,0.00015498,2]
[330731764,1719742241099,-699.59,0.00015498,2]
[330731766,1719742241108,-1094.29,0.00015498,2]
[330731767,1719742241117,-1224.86,0.00015498,2]
[330731769,1719742241126,-746.24,0.00015498,2]
[330731771,1719742241135,-600.36,0.00015498,2]
[330731772,1719742241144,-500.0,0.00015498,2]
[330731774,1719742241153,-1226.32,0.00015498,2]
[330731775,1719742241162,-510.23074069,0.00015498,2]
[330731777,1719742241171,-500.0,0.00015498,2]
[330731779,1719742241180,-500.0,0.00015498,2]
[330731780,1719742241189,-500.0,0.00015498,2]
[330731782,1719742241199,-2163.38,0.00015498,2]
[330731784,1719742241208,-500.0,0.00015498,2]
[330731785,1719742241217,-1445.98,0.00015498,2]
[330731787,1719742241227,-1113.83,0.00015498,2]
[330731789,1719742241236,-2496.55,0.00015498,2]
[330731790,1719742241245,-1467.19,0.00015498,2]
[330731792,1719742241254,-572.42,0.00015498,2]
[330731793,1719742241262,-500.0,0.00015498,2]
[330731795,1719742241274,-500.0,0.00015498,2]
[330731797,1719742241286,-500.0,0.00015498,2]
[330731799,1719742241295,-855.48,0.00015498,2]
[330731800,1719742241304,-2738.43,0.00015498,2]
[330731802,1719742241313,-500.0,0.00015498,2]
[330731804,1719742241322,-188.09167626,0.00015498,2]
[330731805,1719742241331,-500.0,0.00015498,2]
[330731807,1719742241340,-500.0,0.00015498,2]
[330731809,1719742241349,-506.75248737,0.00015498,2]
[330731811,1719742241361,-1512.02,0.00015498,2]
[330731812,1719742241370,-555.92,0.00015498,2]
[330731814,1719742241379,-660.52,0.00015498,2]
[330731816,1719742241388,-1512.82,0.00015498,2]
[330731817,1719742241398,-1256.43,0.00015498,2]
[330731819,1719742241407,-500.0,0.00015498,2]
[330731821,1719742241416,-500.0,0.00015498,2]
[330731823,1719742241425,-151.0,0.00015498,2]
[330731824,1719742241434,-151.0,0.00015498,2]
[330731826,1719742241443,-151.0,0.00015498,2]
[330731828,1719742241452,-151.0,0.00015498,2]
[330731837,1719742241548,-238.256848,0.00015498,2]
[330731838,1719742241557,-506.23553151,0.00015498,2]
[330731840,1719742241566,-500.0,0.00015498,2]
[330731842,1719742241575,-573.467056,0.00015498,2]
[330731843,1719742241584,-573.467056,0.00015498,2]
[330731845,1719742241593,-573.467056,0.00015498,2]
[330731847,1719742241603,-573.467056,0.00015498,2]
[330731849,1719742241612,-573.467056,0.00015498,2]
[330731851,1719742241621,-573.467056,0.00015498,2]
[330731852,1719742241630,-212.7753797,0.00015498,2]
[330732207,1719742246548,-521.67,0.00015423,2]
[330732209,1719742246558,-92.13,0.00015424,2]
[330732719,1719742268922,663.13570375,0.00014998,2]
[330732720,1719742273715,587.7182223,0.00014998,2]
[330732721,1719742293212,851.26009249,0.00014,2]
[330732722,1719742302064,752.5278264,0.00014424,2]
[330732723,1719742325593,500.10894451,0.00015,2]
[330732726,1719742431624,2841.72015043,0.00015,2]
[330732727,1719742451115,208.44139661,0.00014999,2]
[330732731,1719742490585,1486.46959515,0.00014999,2]
[330732732,1719742498445,1313.69980883,0.00014999,2]
[330732733,1719742506805,3769.18827951,0.00015,2]
[330732734,1719742513838,1647.16795346,0.00014999,2]
[330732735,1719742517702,193.5810516,0.00014999,2]
[330732736,1719742534187,154.92116046,0.00014999,2]
[330732737,1719742589287,8414.41870259,0.00014998,2]
[330732738,1719742589313,2710.53365753,0.00014998,2]
[330732740,1719742625864,517.10415187,0.00014999,2]
[330732741,1719742701449,874.70992442,0.00014999,2]
[330732742,1719742720139,3086.47136425,0.00014999,2]
[330732747,1719742747410,154.96350477,0.00014999,2]
[330732754,1719742797873,210.39401569,0.00014999,2]
[330732757,1719742823783,1557.86076046,0.00014999,2]
[330732759,1719742882130,1088.40071052,0.00014999,2]
[330732760,1719742930672,7377.0,0.00015,2]
[330732762,1719742952418,213.72714359,0.00015,2]
[330732763,1719742964705,723.78639686,0.00014999,2]
[330732765,1719742982386,1103.47973038,0.00015,2]
[330732766,1719742984478,5747.36486918,0.00014998,2]
[330732767,1719743030839,2124.31454783,0.00014998,2]
[330732768,1719743035779,2117.15878926,0.00014999,2]
[330732771,1719743096075,1491.5691403,0.00014999,2]
[330732772,1719743129391,1047.8061552,0.00015,2]
[330732773,1719743221101,450.22012774,0.00014999,2]
[330732774,1719743230997,154.83742071,0.00014999,2]
[330732776,1719743264089,847.94793152,0.00014999,2]
[330732777,1719743264793,2117.15878926,0.00014999,2]
[330732778,1719743284480,1313.69980883,0.00014999,2]
[330732780,1719743310144,3076.83798714,0.00014999,2]
[330732781,1719743313368,154.90219034,0.00014999,2]
[330732782,1719743324983,4556.30947534,0.00014999,2]
[330732783,1719743325914,248.54554527,0.00014999,2]
[330732784,1719743330711,1487.99362785,0.00014999,2]
[330732785,1719743335401,6976.32251601,0.00014998,2]
[330732786,1719743349199,155.09048097,0.00014999,2]
[330732787,1719743353998,182.95069141,0.00014999,2]
[330732790,1719743421350,210.16574083,0.00014999,2]
[330732791,1719743423148,712.05288172,0.00014999,2]
[330732850,1719743432783,-291.37794553,0.0001509,2]
[330733040,1719743435057,1122.1124014,0.00014999,2]
[330733413,1719743438596,183.26590412,0.00014999,2]
[330733428,1719743438961,-4994.96685391,0.0001509,2]
[330733431,1719743438971,-300.0,0.00015321,2]
[330733434,1719743438980,-5344.72845197,0.00015322,2]
[330733436,1719743438990,-5344.72845195,0.00015341,2]
[330733438,1719743438999,-5344.72845195,0.0001536,2]
[330733440,1719743439008,-164.1553246,0.00015369,2]
[330733442,1719743439018,-5344.72845195,0.00015379,2]
[330733444,1719743439027,-6046.07,0.00015395,2]
[330733446,1719743439037,-500.0,0.00015395,2]
[330733448,1719743439047,-1662.52,0.00015395,2]
[330733449,1719743439058,-4420.8,0.00015395,2]
[330733451,1719743439067,-500.0,0.00015395,2]
[330733453,1719743439077,-696.71,0.00015395,2]
[330733455,1719743439088,-500.0,0.00015395,2]
[330733457,1719743439098,-500.0,0.00015395,2]
[330733459,1719743439109,-1951.48,0.00015396,2]
[330733461,1719743439119,-35361.8,0.00015396,2]
[330733463,1719743439128,-818.18,0.00015396,2]
[330733477,1719743439138,-4392.64,0.00015396,2]
[330733479,1719743439267,-746.99,0.00015396,2]
[330733481,1719743439278,-3209.83,0.00015396,2]
[330733483,1719743439288,-8223.44,0.00015396,2]
[330733484,1719743439298,-7970.51,0.00015396,2]
[330733487,1719743439308,-3463.31,0.00015396,2]
[330733488,1719743439318,-500.0,0.00015396,2]
[330733490,1719743439328,-994.09,0.00015396,2]
[330733492,1719743439338,-347.27317267,0.00015396,2]
[330733494,1719743439348,-1308.76,0.00015396,2]
[330733496,1719743439358,-1514.53,0.00015396,2]
[330733499,1719743439368,-1107.65,0.00015396,2]
[330733501,1719743439377,-624.74,0.00015396,2]
[330733503,1719743439388,-854.57,0.00015396,2]
[330733504,1719743439398,-604.95,0.00015396,2]
[330733506,1719743439407,-5542.47,0.00015396,2]
[330733508,1719743439417,-1816.07,0.00015396,2]
[330733510,1719743439426,-660.51,0.00015396,2]
[330733512,1719743439435,-3751.48,0.00015396,2]
[330733514,1719743439445,-13868.28,0.00015396,2]
[330733516,1719743439455,-17571.39,0.00015396,2]
[330733518,1719743439464,-8627.02,0.00015396,2]
[330733520,1719743439473,-4424.6,0.00015396,2]
[330733522,1719743439483,-5838.81,0.00015396,2]
[330733524,1719743439493,-754.69,0.00015397,2]
[330733526,1719743439504,-19041.74,0.00015397,2]
[330733528,1719743439514,-500.0,0.00015397,2]
[330733530,1719743439523,-1488.78,0.00015397,2]
[330733532,1719743439533,-3478.08,0.00015397,2]
[330733534,1719743439545,-500.0,0.00015397,2]
[330733536,1719743439558,-500.0,0.00015397,2]
[330733538,1719743439567,-500.0,0.00015397,2]
[330733540,1719743439582,-1998.02,0.00015397,2]
[330733542,1719743439592,-5344.72845195,0.00015398,2]
[330733544,1719743439601,-151.0,0.00015398,2]
[330733546,1719743439611,-135535.98127209,0.00015421,2]
[330733548,1719743439621,-556.77,0.00015421,2]
[330733550,1719743439632,-500.0,0.00015421,2]
[330733552,1719743439648,-2813.19,0.00015421,2]
[330733554,1719743439658,-500.0,0.00015421,2]
[330733556,1719743439669,-846.58,0.00015421,2]
[330733558,1719743439679,-500.0,0.00015421,2]
[330733560,1719743439691,-573.33,0.00015421,2]
[330733562,1719743439701,-500.0,0.00015421,2]
[330733564,1719743439711,-3396.88,0.00015421,2]
[330733566,1719743439723,-502.47533666,0.00015421,2]
[330733568,1719743439733,-683.42,0.00015421,2]
[330733570,1719743439744,-500.0,0.00015421,2]
[330733572,1719743439757,-645.92,0.00015421,2]
[330733574,1719743439767,-500.0,0.00015421,2]
[330733576,1719743439778,-697.61,0.00015421,2]
[330733578,1719743439788,-518.6968974,0.00015421,2]
[330733579,1719743439799,-3242.34,0.00015421,2]
[330733581,1719743439809,-162.71167838,0.00015421,2]
[330733583,1719743439820,-3921.99,0.00015421,2]
[330733586,1719743439831,-501.72680499,0.00015421,2]
[330733588,1719743439842,-501.00203503,0.00015421,2]
[330733590,1719743439851,-501.5096367,0.00015421,2]
[330733591,1719743439861,-893.13,0.00015421,2]
[330733593,1719743439871,-515.09824929,0.00015421,2]
[330733595,1719743439881,-500.0,0.00015421,2]
[330733597,1719743439891,-1034.21,0.00015421,2]
[330733599,1719743439902,-500.0,0.00015421,2]
[330733601,1719743439912,-1288.1,0.00015421,2]
[330733603,1719743439922,-500.0,0.00015421,2]
[330733605,1719743439932,-1804.36,0.00015421,2]
[330733607,1719743439942,-500.0,0.00015421,2]
[330733609,1719743439952,-250.2275,0.00015421,2]
[330733611,1719743439962,-250.2275,0.00015421,2]
[330733613,1719743439972,-500.0,0.00015421,2]